lending/lending_fUSD_20250719
["ID","MTS","AMOUNT","RATE_DAILY","PERIOD"]
[373310339,1752939073837,-541.84,0.00019287,2]
[373310340,1752939073847,-533.0,0.00019287,2]
[373310341,1752939073857,-623.54,0.00019287,2]
[373310342,1752939073868,-480.0,0.00019287,2]
[373310343,1752939073878,-1312.34,0.00019287,2]
[373310344,1752939073888,-604.73857782,0.00019287,2]
[373310345,1752939073898,-480.0,0.00019287,2]
[373310346,1752939073908,-151.0,0.00019287,2]
[373310347,1752939073918,-1928.243971,0.00019287,2]
[373310348,1752939073927,-151.0,0.00019287,2]
[373310349,1752939073937,-681.76,0.00019287,2]
[373310350,1752939073947,-1928.243971,0.00019287,2]
[373310351,1752939073957,-644.91,0.00019287,2]
[373310352,1752939073966,-1928.243971,0.00019287,2]
[373310353,1752939073976,-1031.68,0.00019287,2]
[373310354,1752939073985,-480.0,0.00019287,2]
[373310355,1752939073997,-151.0,0.00019287,2]
[373310356,1752939074007,-151.0,0.00019287,2]
[373310357,1752939074017,-158.17038,0.00019287,2]
[373310358,1752939074026,-480.0,0.00019287,2]
[373310359,1752939074036,-3400.9,0.00019287,2]
[373310360,1752939074046,-583.99,0.00019287,2]
[373310361,1752939074056,-548.27,0.00019287,2]
[373310362,1752939074066,-502.47,0.00019287,2]
[373310363,1752939074080,-480.0,0.00019287,2]
[373310364,1752939074089,-480.0,0.00019287,2]
[373310365,1752939074099,-440.0,0.00019287,2]
[373310366,1752939074107,-480.0,0.00019287,2]
[373310367,1752939074119,-554.23,0.00019287,2]
[373310368,1752939074128,-151.0,0.00019287,2]
[373310369,1752939074137,-151.0,0.00019287,2]
[373310370,1752939074148,-675.1,0.00019287,2]
[373310371,1752939074157,-400.0,0.00019287,2]
[373310372,1752939074167,-151.0,0.00019287,2]
[373310373,1752939074176,-480.0,0.00019287,2]
[373310374,1752939074186,-480.0,0.00019287,2]
[373310375,1752939074195,-480.0,0.00019287,2]
[373310376,1752939074204,-480.0,0.00019287,2]
[373310377,1752939074213,-2392.06,0.00019287,2]
[373310378,1752939074223,-480.0,0.00019287,2]
[373310379,1752939074232,-480.0,0.00019287,2]
[373310380,1752939074242,-664.96,0.00019287,2]
[373310381,1752939074254,-480.0,0.00019287,2]
[373310382,1752939074263,-513.575948,0.00019287,2]
[373310383,1752939074273,-513.575948,0.00019287,2]
[373310384,1752939074283,-480.0,0.00019287,2]
[373310385,1752939074293,-536.95,0.00019287,2]
[373310386,1752939074302,-513.575948,0.00019287,2]
[373310387,1752939074312,-480.0,0.00019287,2]
[373310388,1752939074322,-513.575948,0.00019287,2]
[373310389,1752939074331,-2099.41,0.00019287,2]
[373310390,1752939074341,-165.85776774,0.00019287,2]
[373310391,1752939074351,-455.84458206,0.00019287,2]
[373310392,1752939075220,-24.15541794,0.00019287,2]
[373310393,1752939075230,-480.0,0.00019287,2]
[373310394,1752939075240,-252.34,0.00019287,2]
[373310395,1752939075251,-717.26,0.00019287,2]
[373310396,1752939075260,-480.0,0.00019287,2]
[373310397,1752939075270,-384.05287572,0.00019287,2]
[373310398,1752939075282,-361.64712428,0.00019287,2]
[373310399,1752939075292,-513.575948,0.00019287,2]
[373310400,1752939075301,-513.575948,0.00019287,2]
[373310401,1752939075311,-1764.91,0.00019287,2]
[373310402,1752939075321,-513.575948,0.00019287,2]
[373310403,1752939075330,-513.575948,0.00019287,2]
[373310404,1752939075340,-480.0,0.00019287,2]
[373310405,1752939075350,-480.0,0.00019287,2]
[373310406,1752939075359,-480.0,0.00019287,2]
[373310407,1752939075369,-480.0,0.00019287,2]
[373310408,1752939075379,-480.0,0.00019287,2]
[373310409,1752939075389,-480.0,0.00019287,2]
[373310410,1752939075398,-403.88286597,0.00019287,2]
[373310411,1752939075408,-480.0,0.00019287,2]
[373310412,1752939075417,-210.82967408,0.00019287,7]
[373310413,1752939075427,-400.0,0.00019287,2]
[373310414,1752939075436,-872.9,0.00019287,2]
[373310415,1752939075446,-480.0,0.00019287,2]
[373310416,1752939075455,-480.0,0.00019287,2]
[373310417,1752939075465,-480.0,0.00019287,2]
[373310418,1752939075474,-1381.34,0.00019287,2]
[373310419,1752939075483,-510.46,0.00019287,2]
[373310420,1752939075493,-1262.8,0.00019287,2]
[373310421,1752939075502,-480.0,0.00019287,2]
[373310422,1752939075512,-480.0,0.00019287,2]
[373310423,1752939075521,-480.0,0.00019287,2]
[373310424,1752939075531,-480.0,0.00019287,2]
[373310425,1752939075541,-480.0,0.00019287,2]
[373310426,1752939075551,-921.76,0.00019287,2]
[373310427,1752939075560,-480.0,0.00019287,2]
[373310428,1752939075570,-480.0,0.00019287,2]
[373310429,1752939075579,-486.36132,0.00019287,2]
[373310430,1752939075588,-806.69,0.00019287,2]
[373310431,1752939075598,-1010.52,0.00019287,2]
[373310432,1752939075608,-486.36132,0.00019287,2]
[373310433,1752939075617,-240.737164,0.00019287,2]
[373310434,1752939075626,-486.36132,0.00019287,2]
[373310435,1752939075636,-480.0,0.00019287,2]
[373310436,1752939075645,-480.0,0.00019287,2]
[373310437,1752939075655,-151.0,0.00019287,2]
[373310438,1752939075664,-480.0,0.00019287,2]
[373310439,1752939075673,-151.0,0.00019287,2]
[373310440,1752939076191,-480.0,0.00019287,2]
[373310441,1752939076221,-151.0,0.00019287,2]
[373310442,1752939076242,-400.0,0.00019287,2]
[373310443,1752939076258,-3926.52,0.00019287,2]
[373310444,1752939076268,-480.0,0.00019287,2]
[373310445,1752939076284,-1553.65,0.00019287,2]
[373310446,1752939076294,-480.0,0.00019287,2]
[373310447,1752939076304,-486.36132,0.00019287,2]
[373310448,1752939076314,-486.36132,0.00019287,2]
[373310449,1752939076332,-486.36132,0.00019287,2]
[373310450,1752939076341,-822.91,0.00019287,2]
[373310451,1752939076352,-480.0,0.00019287,2]
[373310452,1752939076363,-480.0,0.00019287,2]
[373310453,1752939076372,-480.0,0.00019287,2]
[373310454,1752939076382,-2208.26,0.00019287,2]
[373310455,1752939076391,-420.0,0.00019287,2]
[373310456,1752939076401,-1289.59,0.00019287,2]
[373310457,1752939076410,-480.0,0.00019287,2]
[373310458,1752939076420,-400.0,0.00019287,2]
[373310459,1752939076429,-480.0,0.00019287,2]
[373310460,1752939076439,-483.89,0.00019287,2]
[373310461,1752939076448,-17860.5,0.00019287,2]
[373310462,1752939076457,-519.0294799,0.00019287,2]
[373310463,1752939076466,-480.0,0.00019287,2]
[373310464,1752939076476,-480.0,0.00019287,2]
[373310465,1752939076485,-480.0,0.00019287,2]
[373310466,1752939076494,-480.0,0.00019287,2]
[373310467,1752939076503,-234.71,0.00019287,2]
[373310468,1752939076513,-868.69,0.00019287,2]
[373310469,1752939076523,-1205.1,0.00019287,2]
[373310470,1752939076533,-896.29,0.00019287,2]
[373310471,1752939076542,-151.0,0.00019287,2]
[373310472,1752939076552,-480.0,0.00019287,2]
[373310473,1752939076561,-153.331698,0.00019287,2]
[373310474,1752939076572,-480.0,0.00019287,2]
[373310475,1752939076581,-480.0,0.00019287,2]
[373310476,1752939076591,-480.0,0.00019287,2]
[373310477,1752939076600,-486.97,0.00019287,2]
[373310478,1752939076610,-3050.55,0.00019287,2]
[373310479,1752939076619,-672.65,0.00019287,2]
[373310480,1752939076628,-2767.68,0.00019287,2]
[373310481,1752939076638,-707.03,0.00019287,2]
[373310482,1752939076647,-480.0,0.00019287,2]
[373310483,1752939076657,-480.0,0.00019287,2]
[373310484,1752939076666,-480.0,0.00019287,2]
[373310485,1752939076675,-480.0,0.00019287,2]
[373310486,1752939076684,-3554.578111,0.00019287,2]
[373310487,1752939076693,-1000.0,0.00019287,2]
[373310488,1752939076702,-3554.578111,0.00019287,2]
[373310489,1752939076711,-151.0,0.00019287,2]
[373310490,1752939076721,-3554.578111,0.00019287,2]
[373310491,1752939076730,-480.0,0.00019287,2]
[373310492,1752939076739,-903.75,0.00019287,2]
[373310493,1752939076749,-151.0,0.00019287,2]
[373310494,1752939076759,-3554.578111,0.00019287,2]
[373310495,1752939076768,-151.0,0.00019287,2]
[373310496,1752939076778,-480.0,0.00019287,2]
[373310497,1752939076787,-480.0,0.00019287,2]
[373310498,1752939076796,-3554.578111,0.00019287,2]
[373310499,1752939076806,-2275.3,0.00019287,2]
[373310500,1752939076815,-3554.578111,0.00019287,2]
[373310501,1752939076825,-480.0,0.00019287,2]
[373310502,1752939076834,-3554.578111,0.00019287,2]
[373310503,1752939076843,-633.16,0.00019287,2]
[373310504,1752939076853,-483.82,0.00019287,2]
[373310505,1752939076863,-3554.578111,0.00019287,2]
[373310506,1752939076872,-480.0,0.00019287,2]
[373310507,1752939076883,-967.79,0.00019287,2]
[373310508,1752939076892,-480.0,0.00019287,2]
[373310509,1752939076902,-480.0,0.00019287,2]
[373310510,1752939076911,-480.0,0.00019287,2]
[373310511,1752939076922,-480.0,0.00019287,2]
[373310512,1752939076931,-480.0,0.00019287,2]
[373310513,1752939076941,-480.0,0.00019287,2]
[373310514,1752939076951,-480.0,0.00019287,2]
[373310515,1752939076960,-480.0,0.00019287,2]
[373310516,1752939076970,-480.0,0.00019287,2]
[373310517,1752939076979,-1107.56,0.00019287,2]
[373310518,1752939076989,-480.0,0.00019287,2]
[373310519,1752939076999,-480.0,0.00019287,2]
[373310520,1752939077009,-480.0,0.00019287,2]
[373310521,1752939077019,-387.34,0.00019287,2]
[373310522,1752939077028,-938.5,0.00019287,2]
[373310523,1752939077038,-480.0,0.00019287,2]
[373310524,1752939077047,-480.0,0.00019287,2]
[373310525,1752939077056,-5259.85,0.00019287,2]
[373310526,1752939077066,-480.0,0.00019287,2]
[373310527,1752939077076,-480.0,0.00019287,2]
[373310528,1752939077086,-1419.29,0.00019287,2]
[373310529,1752939077095,-438.95181935,0.00019287,2]
[373310530,1752939077109,-476.97647235,0.00019287,2]
[373310531,1752939077118,-480.0,0.00019287,2]
[373310532,1752939077127,-400.0,0.00019287,2]
[373310533,1752939077137,-480.0,0.00019287,2]
[373310534,1752939077147,-889.33,0.00019287,2]
[373310535,1752939077158,-480.0,0.00019287,2]
[373310536,1752939077168,-480.0,0.00019287,2]
[373310537,1752939077177,-792.08,0.00019287,2]
[373310538,1752939077187,-480.0,0.00019287,2]
[373310539,1752939077196,-480.0,0.00019287,2]
[373310540,1752939077207,-480.0,0.00019287,2]
[373310541,1752939077216,-480.0,0.00019287,2]
[373310542,1752939077226,-480.0,0.00019287,2]
[373310543,1752939077236,-480.0,0.00019287,2]
[373310544,1752939077245,-480.0,0.00019287,2]
[373310545,1752939077255,-480.0,0.00019287,2]
[373310546,1752939077266,-626.06,0.00019287,2]
[373310547,1752939077276,-697.74,0.00019287,2]
[373310548,1752939077286,-480.0,0.00019287,2]
[373310549,1752939077296,-480.0,0.00019287,2]
[373310550,1752939077306,-480.0,0.00019287,2]
[373310551,1752939077316,-480.0,0.00019287,2]
[373310552,1752939077326,-480.0,0.00019287,2]
[373310553,1752939077335,-434.98055351,0.00019287,2]
[373310554,1752939077346,-484.38233189,0.00019287,2]
[373310555,1752939077356,-480.0,0.00019287,2]
[373310556,1752939077365,-480.0,0.00019287,2]
[373310557,1752939077376,-480.0,0.00019287,2]
[373310558,1752939077385,-480.0,0.00019287,2]
[373310559,1752939077395,-574.7,0.00019287,2]
[373310560,1752939077405,-480.0,0.00019287,2]
[373310561,1752939077414,-480.0,0.00019287,2]
[373310562,1752939077424,-683.79,0.00019287,2]
[373310563,1752939077433,-480.0,0.00019287,2]
[373310564,1752939077443,-968.61,0.00019287,2]
[373310565,1752939077454,-480.0,0.00019287,2]
[373310566,1752939077464,-960.37,0.00019287,2]
[373310567,1752939077473,-480.0,0.00019287,2]
[373310568,1752939077483,-480.0,0.00019287,2]
[373310569,1752939077493,-480.0,0.00019287,2]
[373310570,1752939077503,-480.0,0.00019287,2]
[373310571,1752939077513,-480.0,0.00019287,2]
[373310572,1752939077522,-480.0,0.00019287,2]
[373310573,1752939077532,-1114.33,0.00019287,2]
[373310574,1752939077541,-566.92,0.00019287,2]
[373310575,1752939077551,-360.0,0.00019287,2]
[373310576,1752939077560,-480.0,0.00019287,2]
[373310577,1752939077570,-480.0,0.00019287,2]
[373310578,1752939077580,-480.0,0.00019287,2]
[373310579,1752939077589,-480.0,0.00019287,2]
[373310580,1752939077599,-586.93,0.00019287,2]
[373310581,1752939077609,-480.0,0.00019287,2]
[373310582,1752939077619,-480.0,0.00019287,2]
[373310583,1752939077629,-785.68,0.00019287,2]
[373310584,1752939077638,-480.0,0.00019287,2]
[373310585,1752939077648,-480.0,0.00019287,2]
[373310586,1752939077657,-480.0,0.00019287,2]
[373310587,1752939077667,-480.0,0.00019287,2]
[373310588,1752939077677,-480.0,0.00019287,2]
[373310589,1752939077686,-480.0,0.00019287,2]
[373310590,1752939077696,-480.0,0.00019287,2]
[373310591,1752939077705,-480.0,0.00019287,2]
[373310592,1752939077714,-480.0,0.00019287,2]
[373310593,1752939077724,-540.37,0.00019287,2]
[373310594,1752939077733,-480.0,0.00019287,2]
[373310595,1752939077743,-489.89,0.00019287,2]
[373310596,1752939077754,-480.0,0.00019287,2]
[373310597,1752939077763,-480.0,0.00019287,2]
[373310598,1752939077774,-312.14953055,0.00019287,2]
[373310599,1752939077788,-28963.40019443,0.00019287,2]
[373310600,1752939077810,-1561.22610106,0.00019287,2]
[373310601,1752939080079,512.0,0.00015904,2]
[373310605,1752939334971,460.0,0.00030136,120]
[373310606,1752939338759,2012.83045072,0.0003,120]
[373310608,1752939359292,289.18,0.00013699,2]
[373310610,1752939401053,230.85,0.00023,30]
[373310633,1752939780823,512.0,0.00015282,2]
[373310634,1752939784233,320.58964706,0.00015206,2]
[373310640,1752940127754,221.94,0.00026458,120]
[373310641,1752940138652,512.0,0.00015725,2]
[373310644,1752940232432,-425.80793909,0.00016575,2]
[373310646,1752940232443,-300.0,0.00016675,2]
[373310647,1752940232453,-212.9572505,0.0001711,2]
[373310648,1752940232465,-87.0427495,0.0001711,2]
[373310649,1752940232475,-512.0,0.00017201,3]
[373310650,1752940232485,-425.80793908,0.00017216,2]
[373310651,1752940232495,-204.93718883,0.00017432,2]
[373310652,1752940232504,-223.0,0.000175,2]
[373310653,1752940232513,-300.0,0.00017531,2]
[373310654,1752940232529,-1200.0,0.00017531,2]
[373310656,1752940232548,-150.0,0.00017532,2]
[373310657,1752940232562,-150.0,0.00017532,2]
[373310658,1752940232573,-150.0,0.00017532,2]
[373310659,1752940232582,-242.14856217,0.00017532,2]
[373310660,1752940232592,-150.0,0.00017532,2]
[373310661,1752940232603,-150.0,0.00017532,2]
[373310662,1752940232613,-150.0,0.00017532,2]
[373310663,1752940232623,-151.9119093,0.00017532,2]
[373310664,1752940232633,-150.0,0.00017532,2]
[373310665,1752940232643,-263.88143916,0.00017532,2]
[373310671,1752940232900,-221.94,0.00017639,2]
[373310672,1752940232910,-409.67,0.00017656,2]
[373310673,1752940232920,-243.04,0.00017676,2]
[373310674,1752940232930,-160.25,0.00017729,7]
[373310675,1752940232939,-193.37146087,0.00017743,2]
[373310676,1752940232955,-56.62853913,0.00017743,2]
[373310677,1752940232965,-1000.0,0.00017758,2]
[373310678,1752940232974,-425.80793908,0.00017857,2]
[373310679,1752940232984,-5933.73597481,0.00017881,2]
[373310680,1752940232996,-1143.32369738,0.00017881,2]
[373310681,1752940233007,-65.79632781,0.00017881,2]
[373310682,1752940233017,-207.4,0.00017881,2]
[373310683,1752940233027,-608.72408749,0.00017891,2]
[373310688,1752940233058,-14566.61591251,0.00017891,2]
[373310689,1752940233068,-874.71,0.00017908,2]
[373310690,1752940233079,-346.92554585,0.00017984,2]
[373310691,1752940233088,-160.0,0.00017984,2]
[373310692,1752940233098,-600.0,0.00017984,2]
[373310693,1752940233108,-425.20691269,0.00017984,2]
[373310694,1752940233118,-1573.80985626,0.00017985,2]
[373310695,1752940233127,-23900.0,0.00017995,2]
[373310696,1752940233138,-4047.00802562,0.00018006,2]
[373310697,1752940233151,-272.99197438,0.00018006,2]
[373310698,1752940233161,-165.65895763,0.00018058,2]
[373310699,1752940233171,-300.0,0.00018288,2]
[373310700,1752940233181,-250.0,0.00018288,2]
[373310701,1752940233191,-155.65,0.00018329,2]
[373310702,1752940233201,-500.0,0.00018356,2]
[373310703,1752940233211,-7407.141672,0.00018429,2]
[373310704,1752940233221,-425.80793908,0.00018498,2]
[373310705,1752940233231,-600.0,0.00018532,2]
[373310706,1752940233242,-243.04,0.0001856,2]
[373310707,1752940233251,-512.0,0.00018676,5]
[373310708,1752940233261,-706.51435809,0.0001873,2]
[373310709,1752940233271,-218.0,0.0001878,2]
[373310710,1752940233280,-1236.912319,0.00018901,2]
[373310711,1752940233290,-604.0,0.00018905,2]
[373310712,1752940233300,-706.51435809,0.0001892,2]
[373310713,1752940233310,-814.69,0.00018932,2]
[373310714,1752940233319,-929.6,0.00018932,2]
[373310715,1752940233329,-604.0,0.00018942,2]
[373310716,1752940233338,-604.0,0.00018948,2]
[373310717,1752940233348,-604.0,0.00018958,2]
[373310718,1752940233357,-7681.20591386,0.00018977,2]
[373310719,1752940233367,-3671.2203,0.00018978,2]
[373310720,1752940233376,-160.0,0.00018981,2]
[373310721,1752940233386,-476.80070012,0.00018981,2]
[373310722,1752940233395,-482.0,0.00019014,2]
[373310723,1752940233405,-300.0,0.00019068,2]
[373310724,1752940233415,-458.63,0.00019068,2]
[373310725,1752940233424,-176.56,0.00019068,2]
[373310726,1752940233433,-589.31895837,0.00019068,2]
[373310727,1752940233446,-366.93104163,0.00019068,2]
[373310728,1752940233456,-300.75,0.00019068,2]
[373310729,1752940233465,-725.66,0.00019068,2]
[373310730,1752940233475,-301.89,0.00019068,2]
[373310731,1752940233486,-467.27877667,0.00019077,2]
[373310732,1752940233507,-292.71672333,0.00019077,2]
[373310733,1752940233516,-159.46330747,0.00019077,2]
[373310734,1752940233526,-567.89512218,0.00019078,2]
[373310735,1752940233535,-9986.93114393,0.00019078,2]
[373310736,1752940233545,-577.71666504,0.00019078,2]
[373310737,1752940233557,-172.50592534,0.00019078,2]
[373310738,1752940233567,-229.8685261,0.00019078,2]
[373310739,1752940233576,-10000.0,0.00019078,2]
[373310740,1752940233586,-634.2305,0.00019078,2]
[373310741,1752940233595,-2500.0,0.00019078,2]
[373310742,1752940233605,-600.0,0.0001908,2]
[373310743,1752940233614,-604.0,0.00019112,2]
[373310744,1752940233624,-150.0,0.0001913,2]
[373310745,1752940233634,-229.8685261,0.00019133,2]
[373310746,1752940233644,-4024.267,0.00019138,2]
[373310747,1752940233654,-205.085,0.00019138,2]
[373310748,1752940233663,-425.80793908,0.00019139,2]
[373310749,1752940233673,-567.89512214,0.00019156,2]
[373310750,1752940233683,-9986.93114385,0.00019156,2]
[373310751,1752940233692,-196.98,0.00019168,2]
[373310752,1752940233702,-539.08,0.00019168,2]
[373310753,1752940233712,-180.84344937,0.00019177,5]
[373310754,1752940233721,-1121.53071492,0.00019177,5]
[373310755,1752940233731,-1121.53071492,0.00019177,5]
[373310756,1752940233743,-1121.53071492,0.00019177,5]
[373310757,1752940233754,-219.15655063,0.00019177,5]
[373310758,1752940233763,-500.0,0.00019177,2]
[373310759,1752940233773,-500.0,0.00019177,2]
[373310760,1752940233783,-500.0,0.00019177,2]
[373310761,1752940233793,-493.23984911,0.00019177,2]
[373310762,1752940233802,-500.0,0.00019177,2]
[373310763,1752940233811,-500.0,0.00019177,2]
[373310764,1752940233821,-500.0,0.00019177,2]
[373310765,1752940233830,-622.45677652,0.00019177,2]
[373310766,1752940233840,-503.76015169,0.00019177,2]
[373310767,1752940233850,-460.0,0.00019178,2]
[373310768,1752940233859,-460.0,0.00019178,2]
[373310769,1752940233869,-480.0,0.00019178,2]
[373310770,1752940233879,-460.0,0.00019178,2]
[373310771,1752940233888,-480.0,0.00019178,2]
[373310772,1752940233898,-480.0,0.00019178,2]
[373310773,1752940233907,-490.0,0.00019178,2]
[373310774,1752940233917,-460.0,0.00019178,2]
[373310775,1752940233926,-460.0,0.00019178,2]
[373310776,1752940233936,-460.0,0.00019178,2]
[373310777,1752940233945,-151.0,0.00019178,2]
[373310778,1752940233955,-151.0,0.00019178,2]
[373310779,1752940233964,-480.0,0.00019178,2]
[373310780,1752940233974,-480.0,0.00019178,2]
[373310781,1752940233984,-495.41472534,0.00019178,2]
[373310782,1752940233993,-480.0,0.00019178,2]
[373310783,1752940234003,-480.0,0.00019178,2]
[373310784,1752940234012,-237.57317851,0.00019178,2]
[373310785,1752940234021,-460.0,0.00019178,2]
[373310786,1752940234030,-160.71658478,0.00019178,2]
[373310787,1752940234040,-480.0,0.00019178,2]
[373310788,1752940234049,-480.0,0.00019178,2]
[373310789,1752940234059,-480.0,0.00019178,2]
[373310790,1752940234068,-501.22804662,0.00019178,2]
[373310791,1752940234078,-460.0,0.00019178,2]
[373310792,1752940234088,-385.29155508,0.00019178,2]
[373310793,1752940234098,-151.0,0.00019178,2]
[373310794,1752940234107,-460.0,0.00019178,2]
[373310795,1752940234116,-460.0,0.00019178,2]
[373310796,1752940234126,-480.0,0.00019178,2]
[373310797,1752940234135,-460.0,0.00019178,2]
[373310798,1752940234144,-460.0,0.00019178,2]
[373310799,1752940234153,-460.0,0.00019178,2]
[373310800,1752940234162,-451.50402355,0.00019178,2]
[373310801,1752940234171,-460.0,0.00019178,2]
[373310802,1752940234180,-460.0,0.00019178,2]
[373310803,1752940234190,-460.0,0.00019178,2]
[373310804,1752940234200,-460.0,0.00019178,2]
[373310805,1752940234210,-460.0,0.00019178,2]
[373310806,1752940234219,-460.0,0.00019178,2]
[373310807,1752940234229,-490.60785926,0.00019178,2]
[373310808,1752940234239,-460.0,0.00019178,2]
[373310809,1752940234249,-460.0,0.00019178,2]
[373310810,1752940234259,-151.0,0.00019178,2]
[373310811,1752940234269,-151.0,0.00019178,2]
[373310812,1752940234279,-460.0,0.00019178,2]
[373310813,1752940234288,-151.0,0.00019178,2]
[373310814,1752940234298,-151.0,0.00019178,2]
[373310815,1752940234307,-491.03243008,0.00019178,2]
[373310816,1752940234317,-460.0,0.00019178,2]
[373310817,1752940234327,-460.0,0.00019178,2]
[373310818,1752940234336,-460.0,0.00019178,2]
[373310819,1752940234346,-460.000001,0.00019178,2]
[373310820,1752940234356,-158.984361,0.00019178,2]
[373310821,1752940234365,-281.94572009,0.00019178,2]
[373310822,1752940234781,-178.05427991,0.00019178,2]
[373310823,1752940234791,-460.0,0.00019178,2]
[373310824,1752940234800,-480.0,0.00019178,2]
[373310825,1752940234809,-480.0,0.00019178,2]
[373310826,1752940234819,-460.0,0.00019178,2]
[373310827,1752940234828,-480.0,0.00019178,2]
[373310828,1752940234837,-480.0,0.00019178,2]
[373310829,1752940234847,-480.0,0.00019178,2]
[373310830,1752940234856,-460.0,0.00019178,2]
[373310831,1752940234866,-480.0,0.00019178,2]
[373310832,1752940234875,-480.0,0.00019178,2]
[373310833,1752940234885,-591.63223458,0.00019178,2]
[373310834,1752940234894,-480.0,0.00019178,2]
[373310835,1752940234904,-480.0,0.00019178,2]
[373310836,1752940234913,-480.0,0.00019178,2]
[373310837,1752940234922,-460.0,0.00019178,2]
[373310838,1752940234932,-480.0,0.00019178,2]
[373310839,1752940234941,-480.0,0.00019178,2]
[373310840,1752940234950,-460.0,0.00019178,2]
[373310841,1752940234959,-460.0,0.00019178,2]
[373310842,1752940234968,-460.0,0.00019178,2]
[373310843,1752940234978,-460.0,0.00019178,2]
[373310844,1752940234987,-480.0,0.00019178,2]
[373310845,1752940234997,-480.0,0.00019178,2]
[373310846,1752940235006,-480.0,0.00019178,2]
[373310847,1752940235015,-460.0,0.00019178,2]
[373310848,1752940235024,-480.0,0.00019178,2]
[373310849,1752940235034,-461.45047378,0.00019178,2]
[373310850,1752940235043,-460.0,0.00019178,2]
[373310851,1752940235052,-480.0,0.00019178,2]
[373310852,1752940235061,-460.0,0.00019178,2]
[373310853,1752940235071,-480.0,0.00019178,2]
[373310854,1752940235081,-480.0,0.00019178,2]
[373310855,1752940235091,-480.0,0.00019178,2]
[373310856,1752940235101,-480.0,0.00019178,2]
[373310857,1752940235109,-480.0,0.00019178,2]
[373310858,1752940235118,-480.0,0.00019178,2]
[373310859,1752940235126,-480.0,0.00019178,2]
[373310860,1752940235134,-460.0,0.00019178,2]
[373310861,1752940235142,-480.0,0.00019178,2]
[373310862,1752940235150,-480.0,0.00019178,2]
[373310863,1752940235159,-460.0,0.00019178,2]
[373310864,1752940235167,-480.0,0.00019178,2]
[373310865,1752940235176,-480.0,0.00019178,2]
[373310866,1752940235186,-480.0,0.00019178,2]
[373310867,1752940235195,-460.0,0.00019178,2]
[373310868,1752940235205,-480.0,0.00019178,2]
[373310869,1752940235214,-480.0,0.00019178,2]
[373310870,1752940235223,-480.0,0.00019178,2]
[373310871,1752940235233,-480.0,0.00019178,2]
[373310872,1752940235243,-480.0,0.00019178,2]
[373310873,1752940235253,-480.0,0.00019178,2]
[373310874,1752940235263,-460.0,0.00019178,2]
[373310875,1752940235272,-480.0,0.00019178,2]
[373310876,1752940235281,-480.0,0.00019178,2]
[373310877,1752940235292,-480.0,0.00019178,2]
[373310878,1752940235303,-480.0,0.00019178,2]
[373310879,1752940235313,-480.0,0.00019178,2]
[373310880,1752940235323,-480.0,0.00019178,2]
[373310881,1752940235333,-480.0,0.00019178,2]
[373310882,1752940235342,-480.0,0.00019178,2]
[373310883,1752940235351,-466.62856281,0.00019178,2]